fUSD/lending_fUSD_20250820
["ID","MTS","AMOUNT","RATE_DAILY","PERIOD"]
[380389938,1755723044658,-150.0,0.00030134,2]
[380389939,1755723044667,-150.0,0.00030134,2]
[380389940,1755723044676,-150.0,0.00030134,2]
[380389941,1755723044685,-150.0,0.00030134,2]
[380389942,1755723044694,-150.0,0.00030134,2]
[380389943,1755723044703,-150.0,0.00030134,2]
[380389944,1755723044712,-150.0,0.00030134,2]
[380389945,1755723044721,-150.0,0.00030134,2]
[380389946,1755723044731,-150.0,0.00030134,2]
[380389947,1755723044740,-150.0,0.00030134,2]
[380389948,1755723044750,-150.0,0.00030134,2]
[380389949,1755723044759,-150.0,0.00030134,2]
[380389950,1755723044769,-150.0,0.00030134,2]
[380389951,1755723044778,-150.0,0.00030134,2]
[380389952,1755723044787,-150.0,0.00030134,2]
[380389953,1755723044796,-150.0,0.00030134,2]
[380389954,1755723044806,-150.0,0.00030134,2]
[380389955,1755723044815,-150.0,0.00030134,2]
[380389956,1755723044824,-150.0,0.00030134,2]
[380389957,1755723044833,-32723.50403904,0.00030135,7]
[380389958,1755723044843,-400.0,0.00030136,10]
[380389959,1755723044852,-400.0,0.00030136,7]
[380389960,1755723044862,-6944.44,0.00030136,2]
[380389961,1755723044871,-400.0,0.00030136,120]
[380389962,1755723044881,-568.66,0.00030136,120]
[380389963,1755723044890,-366.55837966,0.00030136,120]
[380389964,1755723044899,-993.91,0.00030136,120]
[380389965,1755723044909,-630.46,0.00030136,120]
[380389966,1755723044919,-471.08,0.00030136,120]
[380389967,1755723044928,-400.0,0.00030136,120]
[380389968,1755723044937,-1531.07,0.00030136,120]
[380389969,1755723044946,-1439.66,0.00030136,120]
[380389970,1755723044955,-400.0,0.00030136,120]
[380389971,1755723044964,-400.0,0.00030136,120]
[380389972,1755723044974,-1961.1,0.00030136,120]
[380389973,1755723044983,-400.0,0.00030136,120]
[380389974,1755723044992,-471.63,0.00030136,120]
[380389975,1755723045001,-544.44,0.00030136,120]
[380389976,1755723045011,-400.0,0.00030136,120]
[380389977,1755723045021,-899.79,0.00030136,120]
[380389978,1755723045032,-400.0,0.00030136,120]
[380389979,1755723045043,-442.06,0.00030136,120]
[380389980,1755723045052,-400.0,0.00030136,120]
[380389981,1755723045062,-896.16,0.00030136,120]
[380389982,1755723045072,-400.0,0.00030136,120]
[380389983,1755723045081,-837.95,0.00030136,120]
[380389984,1755723045090,-1161.31,0.00030136,120]
[380389985,1755723045099,-923.72,0.00030136,120]
[380389986,1755723045110,-400.0,0.00030136,120]
[380389987,1755723045119,-400.0,0.00030136,120]
[380389988,1755723045129,-1560.27,0.00030136,120]
[380389989,1755723045139,-400.0,0.00030136,120]
[380389990,1755723045148,-400.0,0.00030136,120]
[380389991,1755723045158,-560.02,0.00030136,120]
[380389992,1755723045167,-1366.61,0.00030136,120]
[380389993,1755723045177,-599.7,0.00030136,10]
[380389994,1755723045186,-400.0,0.00030136,120]
[380389995,1755723045196,-400.0,0.00030136,120]
[380389996,1755723045205,-400.0,0.00030136,120]
[380389997,1755723045215,-400.0,0.00030136,120]
[380389998,1755723045224,-400.0,0.00030136,120]
[380389999,1755723045233,-538.82,0.00030136,120]
[380390000,1755723045242,-400.0,0.00030136,120]
[380390001,1755723045252,-1527.95,0.00030136,120]
[380390002,1755723045261,-400.0,0.00030136,120]
[380390003,1755723045271,-1138.81,0.00030136,120]
[380390004,1755723045289,-1586.67,0.00030136,120]
[380390005,1755723045307,-1322.37,0.00030136,120]
[380390006,1755723045317,-1348.73,0.00030136,120]
[380390007,1755723045327,-1000.07,0.00030136,120]
[380390008,1755723045337,-400.0,0.00030136,120]
[380390009,1755723045349,-663.97,0.00030136,120]
[380390010,1755723045361,-1382.93,0.00030136,120]
[380390011,1755723045370,-229.47114114,0.00030136,120]
[380390012,1755723045380,-400.0,0.00030136,120]
[380390013,1755723045390,-400.0,0.00030136,120]
[380390014,1755723045746,-1509.84,0.00030136,120]
[380390015,1755723045756,-685.2,0.00030136,120]
[380390017,1755723045766,-957.75,0.00030136,120]
[380390018,1755723045775,-400.0,0.00030136,120]
[380390019,1755723045785,-1061.64,0.00030136,120]
[380390020,1755723045794,-672.62,0.00030136,120]
[380390021,1755723045804,-400.81651533,0.00030136,120]
[380390022,1755723045814,-1375.09,0.00030136,120]
[380390023,1755723045823,-400.0,0.00030136,120]
[380390024,1755723045833,-1488.47,0.00030136,30]
[380390025,1755723045843,-419.82919446,0.00030136,120]
[380390026,1755723045852,-400.0,0.00030136,120]
[380390027,1755723045861,-1488.22,0.00030136,120]
[380390028,1755723045871,-400.0,0.00030136,120]
[380390029,1755723045880,-1087.88,0.00030136,120]
[380390030,1755723045889,-1181.46,0.00030136,120]
[380390031,1755723045898,-1401.07,0.00030136,120]
[380390032,1755723045908,-400.0,0.00030136,120]
[380390033,1755723045917,-945.89,0.00030136,120]
[380390034,1755723045928,-400.0,0.00030136,120]
[380390035,1755723045940,-401.08,0.00030136,120]
[380390036,1755723045949,-500.0,0.00030136,120]
[380390037,1755723045958,-760.37,0.00030136,120]
[380390038,1755723045968,-764.36,0.00030136,120]
[380390039,1755723045980,-400.0,0.00030136,120]
[380390040,1755723045990,-1458.03,0.00030136,120]
[380390041,1755723046000,-1196.72,0.00030136,120]
[380390042,1755723046010,-400.0,0.00030136,120]
[380390043,1755723046020,-400.0,0.00030136,120]
[380390044,1755723046030,-1527.88,0.00030136,120]
[380390045,1755723046040,-400.0,0.00030136,120]
[380390046,1755723046052,-400.0,0.00030136,120]
[380390047,1755723046061,-1425.88,0.00030136,120]
[380390048,1755723046071,-1375.02,0.00030136,120]
[380390049,1755723046080,-400.0,0.00030136,120]
[380390050,1755723046089,-441.5,0.00030136,120]
[380390051,1755723046099,-400.0,0.00030136,120]
[380390052,1755723046108,-400.0,0.00030136,120]
[380390053,1755723046118,-561.6,0.00030136,120]
[380390054,1755723046127,-1434.4,0.00030136,120]
[380390055,1755723046137,-500.0,0.00030136,2]
[380390056,1755723046146,-500.0,0.00030136,2]
[380390057,1755723046155,-500.0,0.00030136,2]
[380390058,1755723046165,-500.0,0.00030136,2]
[380390059,1755723046174,-500.0,0.00030136,2]
[380390060,1755723046183,-500.0,0.00030136,2]
[380390061,1755723046192,-500.0,0.00030136,2]
[380390062,1755723046202,-500.0,0.00030136,2]
[380390063,1755723046211,-583.45,0.00030136,120]
[380390064,1755723046220,-500.0,0.00030136,2]
[380390065,1755723046231,-1321.4,0.00030136,120]
[380390066,1755723046240,-500.0,0.00030136,2]
[380390067,1755723046249,-500.0,0.00030136,2]
[380390068,1755723046258,-1053.98,0.00030136,120]
[380390069,1755723046267,-500.0,0.00030136,2]
[380390070,1755723046276,-500.0,0.00030136,2]
[380390071,1755723046286,-310.0,0.00030136,120]
[380390072,1755723046295,-500.0,0.00030136,2]
[380390073,1755723046304,-500.0,0.00030136,2]
[380390074,1755723046313,-500.0,0.00030136,2]
[380390075,1755723046322,-500.0,0.00030136,2]
[380390076,1755723046331,-500.0,0.00030136,2]
[380390077,1755723046341,-500.0,0.00030136,2]
[380390079,1755723046351,-400.0,0.00030136,120]
[380390080,1755723046360,-500.0,0.00030136,2]
[380390082,1755723046369,-400.0,0.00030136,120]
[380390084,1755723046379,-500.0,0.00030136,2]
[380390086,1755723046388,-500.0,0.00030136,2]
[380390087,1755723046398,-500.0,0.00030136,2]
[380390089,1755723046407,-363.35084228,0.00030136,2]
[380390091,1755723046416,-464.06,0.00030136,120]
[380390092,1755723046428,-400.0,0.00030136,120]
[380390093,1755723046438,-1040.44,0.00030136,120]
[380390094,1755723046447,-1074.49,0.00030136,120]
[380390095,1755723046456,-400.0,0.00030136,120]
[380390096,1755723046466,-400.0,0.00030136,120]
[380390097,1755723046477,-406.24,0.00030136,120]
[380390098,1755723046486,-400.0,0.00030136,120]
[380390099,1755723046496,-476.03,0.00030136,120]
[380390100,1755723046506,-933.97,0.00030136,120]
[380390102,1755723046516,-1597.49,0.00030136,120]
[380390103,1755723046525,-400.0,0.00030136,120]
[380390104,1755723046535,-1149.52,0.00030136,120]
[380390105,1755723046544,-2513.92,0.00030136,120]
[380390106,1755723046553,-400.0,0.00030136,120]
[380390107,1755723046562,-463.72,0.00030136,120]
[380390108,1755723046572,-400.0,0.00030136,120]
[380390109,1755723046581,-1775.01,0.00030136,120]
[380390110,1755723046591,-400.0,0.00030136,120]
[380390111,1755723046601,-1131.52,0.00030136,120]
[380390112,1755723046610,-446.02,0.00030136,120]
[380390113,1755723046619,-1479.97,0.00030136,120]
[380390114,1755723046629,-400.0,0.00030136,120]
[380390115,1755723046638,-400.0,0.00030136,120]
[380390116,1755723046647,-400.0,0.00030136,120]
[380390117,1755723046657,-400.0,0.00030136,120]
[380390118,1755723046666,-400.0,0.00030136,120]
[380390119,1755723046676,-689.45,0.00030136,120]
[380390120,1755723046685,-1412.83,0.00030136,120]
[380390121,1755723046695,-1514.28,0.00030136,120]
[380390122,1755723046704,-723.05,0.00030136,120]
[380390123,1755723046714,-587.9,0.00030136,120]
[380390124,1755723046723,-1106.85,0.00030136,120]
[380390125,1755723046733,-400.0,0.00030136,120]
[380390126,1755723046743,-1819.76,0.00030136,120]
[380390127,1755723046756,-685.96,0.00030136,120]
[380390128,1755723046766,-400.0,0.00030136,120]
[380390129,1755723046776,-539.55,0.00030136,120]
[380390130,1755723046786,-1279.56,0.00030136,120]
[380390131,1755723046795,-400.0,0.00030136,120]
[380390132,1755723046805,-715.21,0.00030136,120]
[380390133,1755723046815,-400.0,0.00030136,120]
[380390134,1755723046825,-1209.58,0.00030136,120]
[380390135,1755723046835,-1048.96,0.00030136,120]
[380390136,1755723046844,-1205.08,0.00030136,120]
[380390137,1755723046854,-400.0,0.00030136,120]
[380390138,1755723046864,-590.85,0.00030136,120]
[380390139,1755723046873,-400.0,0.00030136,120]
[380390140,1755723046882,-1455.55,0.00030136,30]
[380390141,1755723046892,-569.76,0.00030136,120]
[380390142,1755723046901,-683.04,0.00030136,120]
[380390143,1755723046911,-454.65,0.00030136,120]
[380390144,1755723046920,-400.00000083,0.00030136,120]
[380390145,1755723046930,-1029.19,0.00030136,120]
[380390146,1755723046939,-400.0,0.00030136,120]
[380390147,1755723046949,-193.19173117,0.00030136,120]
[380390148,1755723046958,-400.0,0.00030136,120]
[380390149,1755723046968,-400.0,0.00030136,120]
[380390150,1755723046978,-1184.3,0.00030136,120]
[380390151,1755723046988,-917.68,0.00030136,120]
[380390152,1755723046998,-1172.53,0.00030136,120]
[380390153,1755723047008,-400.0,0.00030136,120]
[380390154,1755723047019,-1243.99,0.00030136,120]
[380390155,1755723047028,-400.0,0.00030136,120]
[380390156,1755723047038,-400.0,0.00030136,120]
[380390157,1755723047047,-1093.81,0.00030136,120]
[380390158,1755723047057,-400.0,0.00030136,120]
[380390159,1755723047067,-496.63,0.00030136,120]
[380390160,1755723047077,-1138.54,0.00030136,60]
[380390161,1755723047087,-1058.69,0.00030136,120]
[380390162,1755723047096,-422.25,0.00030136,120]
[380390163,1755723047106,-400.0,0.00030136,120]
[380390164,1755723047115,-400.0,0.00030136,120]
[380390165,1755723047125,-465.36,0.00030136,120]
[380390166,1755723047135,-554.82,0.00030136,120]
[380390167,1755723047144,-400.0,0.00030136,120]
[380390168,1755723047155,-472.77,0.00030136,120]
[380390169,1755723047172,-1118.73,0.00030136,120]
[380390170,1755723047181,-400.0,0.00030136,120]
[380390171,1755723047191,-269.01277528,0.00030136,120]
[380390172,1755723047200,-400.0,0.00030136,120]
[380390173,1755723047210,-1211.62,0.00030136,120]
[380390174,1755723047219,-400.0,0.00030136,120]
[380390175,1755723047230,-431.83,0.00030136,120]
[380390176,1755723047239,-1229.19,0.00030136,120]
[380390177,1755723047249,-876.22,0.00030136,120]
[380390178,1755723047259,-1358.39,0.00030136,120]
[380390179,1755723047268,-400.0,0.00030136,120]
[380390180,1755723047278,-400.0,0.00030136,120]
[380390181,1755723047287,-1183.73,0.00030136,120]
[380390182,1755723047297,-439.72656544,0.00030136,120]
[380390183,1755723047308,-400.0,0.00030136,120]
[380390184,1755723047319,-426.69,0.00030136,120]
[380390185,1755723047330,-534.53,0.00030136,120]
[380390186,1755723047340,-782.99,0.00030136,120]
[380390187,1755723047349,-400.0,0.00030136,120]
[380390188,1755723047358,-400.0,0.00030136,120]
[380390189,1755723047368,-1493.26,0.00030136,120]
[380390190,1755723047377,-1228.47,0.00030136,120]
[380390191,1755723047387,-772.13,0.00030136,120]
[380390192,1755723047396,-400.0,0.00030136,120]
[380390193,1755723047405,-400.0,0.00030136,120]
[380390194,1755723047419,-985.92,0.00030136,120]
[380390195,1755723047431,-490.92,0.00030136,120]
[380390196,1755723047440,-1487.6,0.00030136,120]
[380390197,1755723047450,-400.0,0.00030136,120]
[380390198,1755723047459,-418.25,0.00030136,120]
[380390199,1755723047469,-1004.44,0.00030136,120]
[380390200,1755723047479,-477.52,0.00030136,120]
[380390201,1755723047488,-1749.31,0.00030136,120]
[380390202,1755723047498,-569.9,0.00030136,120]
[380390203,1755723047508,-400.0,0.00030136,120]
[380390204,1755723047517,-480.68,0.00030136,120]
[380390205,1755723047527,-400.0,0.00030136,120]
[380390206,1755723047536,-400.0,0.00030136,120]
[380390207,1755723047546,-785.13,0.00030136,120]
[380390208,1755723047556,-1009.24,0.00030136,120]
[380390209,1755723047565,-400.0,0.00030136,120]
[380390210,1755723047575,-1581.58,0.00030136,120]
[380390211,1755723047584,-528.6,0.00030136,120]
[380390212,1755723047594,-1270.42,0.00030136,120]
[380390213,1755723047603,-1086.97,0.00030136,120]
[380390214,1755723047613,-400.0,0.00030136,120]
[380390215,1755723047622,-400.0,0.00030136,120]
[380390216,1755723047632,-401.81579425,0.00030136,2]
[380390217,1755723047641,-1294.73,0.00030136,120]
[380390218,1755723047650,-400.0,0.00030136,120]
[380390219,1755723047660,-400.0,0.00030136,120]
[380390220,1755723047669,-1619.01,0.00030136,2]
[380390221,1755723047679,-1395.91,0.00030136,120]
[380390222,1755723047688,-425.23,0.00030136,120]
[380390223,1755723047698,-474.21,0.00030136,120]
[380390224,1755723047708,-1709.43,0.00030136,120]
[380390225,1755723047717,-433.09,0.00030136,120]
[380390226,1755723047727,-1375.17,0.00030136,120]
[380390227,1755723047736,-1702.27,0.00030136,120]
[380390228,1755723047746,-1764.92,0.00030136,120]
[380390229,1755723047755,-1075.2,0.00030136,120]
[380390230,1755723047765,-2461.17,0.00030136,120]
[380390231,1755723047774,-400.0,0.00030136,2]
[380390232,1755723047784,-400.0,0.00030136,120]
[380390233,1755723047793,-1536.33,0.00030136,120]
[380390234,1755723047803,-1071.7,0.00030136,120]
[380390235,1755723047812,-1572.77,0.00030136,120]
[380390236,1755723047822,-404.28,0.00030136,2]
[380390237,1755723047832,-615.81,0.00030136,120]
[380390238,1755723047841,-400.0,0.00030136,120]
[380390239,1755723047850,-500.33,0.00030136,120]
[380390240,1755723047860,-588.5,0.00030136,120]
[380390241,1755723047869,-400.0,0.00030136,120]
[380390242,1755723047878,-400.0,0.00030136,120]
[380390243,1755723047888,-1419.82,0.00030136,120]
[380390244,1755723047897,-400.0,0.00030136,120]
[380390245,1755723047906,-400.0,0.00030136,120]
[380390246,1755723047916,-400.0,0.00030136,120]
[380390247,1755723047925,-400.0,0.00030136,120]
[380390248,1755723047934,-400.0,0.00030136,2]
[380390249,1755723047944,-1318.5,0.00030136,120]
[380390250,1755723047953,-1187.68,0.00030136,120]
[380390251,1755723047962,-980.13,0.00030136,120]
[380390252,1755723047971,-1231.89,0.00030136,120]
[380390253,1755723047981,-400.0,0.00030136,120]
[380390254,1755723047990,-400.0,0.00030136,120]
[380390255,1755723047999,-333.37451125,0.00030136,2]
[380390256,1755723048009,-1093.95,0.00030136,120]
[380390257,1755723048018,-400.0,0.00030136,120]
[380390258,1755723048027,-1447.57,0.00030136,120]
[380390259,1755723048036,-400.0,0.00030136,120]
[380390260,1755723048046,-400.0,0.00030136,120]
[380390261,1755723048055,-822.28,0.00030136,120]
[380390262,1755723048064,-1189.09,0.00030136,2]
[380390263,1755723048249,-999.78,0.00030136,120]
[380390264,1755723048259,-608.2,0.00030136,120]
[380390265,1755723048268,-506.14,0.00030136,120]
[380390266,1755723048278,-706.42,0.00030136,120]
[380390267,1755723048287,-1595.15,0.00030136,120]
[380390268,1755723048296,-911.57,0.00030136,120]
[380390269,1755723048305,-1721.48,0.00030136,120]
[380390270,1755723048315,-400.0,0.00030136,120]
[380390271,1755723048324,-400.0,0.00030136,120]
[380390272,1755723048333,-1002.3,0.00030136,120]
[380390273,1755723048343,-400.0,0.00030136,120]
[380390274,1755723048352,-1028.0,0.00030136,120]
[380390275,1755723048362,-400.0,0.00030136,120]
[380390276,1755723048371,-400.0,0.00030136,120]
[380390277,1755723048380,-400.0,0.00030136,120]
[380390278,1755723048389,-1267.37,0.00030136,120]
[380390279,1755723048398,-400.0,0.00030136,120]
[380390280,1755723048408,-1937.2,0.00030136,120]
[380390281,1755723048419,-400.0,0.00030136,120]
[380390282,1755723048432,-721.9,0.00030136,120]
[380390283,1755723048442,-667.86,0.00030136,120]
[380390284,1755723048451,-400.0,0.00030136,120]
[380390285,1755723048461,-881.75,0.00030136,120]
[380390286,1755723048470,-257.26030955,0.00030136,120]
[380390287,1755723048480,-917.83,0.00030136,120]
[380390288,1755723048490,-1080.35,0.00030136,120]
[380390289,1755723048502,-1569.89,0.00030136,120]
[380390290,1755723048512,-1099.56,0.00030136,120]
[380390291,1755723048522,-400.0,0.00030136,120]
[380390292,1755723048531,-400.0,0.00030136,120]
[380390293,1755723048541,-711.73,0.00030136,120]
[380390294,1755723048551,-437.02,0.00030136,120]
[380390295,1755723048561,-1259.28,0.00030136,120]
[380390296,1755723048570,-400.0,0.00030136,120]
[380390297,1755723048580,-400.0,0.00030136,120]
[380390298,1755723048590,-762.77,0.00030136,120]
[380390299,1755723048600,-400.0,0.00030136,120]
[380390300,1755723048610,-400.0,0.00030136,120]
[380390301,1755723048619,-400.0,0.00030136,120]
[380390302,1755723048628,-400.0,0.00030136,120]
[380390303,1755723048638,-1317.26,0.00030136,120]
[380390304,1755723048647,-1151.46,0.00030136,120]
[380390305,1755723048656,-910.58,0.00030136,120]
[380390306,1755723048665,-400.0,0.00030136,2]
[380390307,1755723048675,-1118.86,0.00030136,120]
[380390308,1755723048684,-425.8,0.00030136,120]
[380390309,1755723048694,-400.0,0.00030136,120]
[380390310,1755723048704,-465.97591851,0.00030136,120]
[380390311,1755723048713,-400.0,0.00030136,120]
[380390312,1755723048722,-2053.55,0.00030136,120]
[380390313,1755723048733,-400.0,0.00030136,120]
[380390314,1755723048742,-530.41187727,0.00030136,120]
[380390315,1755723048752,-400.0,0.00030136,120]
[380390316,1755723048762,-400.0,0.00030136,120]
[380390317,1755723048771,-528.77,0.00030136,120]
[380390318,1755723048780,-400.0,0.00030136,120]
[380390319,1755723048790,-632.68,0.00030136,120]
[380390320,1755723048799,-996.97,0.00030136,120]
[380390321,1755723048808,-1092.7,0.00030136,120]
[380390322,1755723048817,-1290.11,0.00030136,120]
[380390323,1755723048827,-400.0,0.00030136,120]
[380390324,1755723048836,-400.0,0.00030136,120]
[380390325,1755723048845,-808.95,0.00030136,120]
[380390326,1755723048855,-400.0,0.00030136,120]
[380390327,1755723048864,-400.0,0.00030136,120]
[380390328,1755723048873,-567.56,0.00030136,120]
[380390329,1755723048882,-906.2,0.00030136,120]
[380390330,1755723048891,-400.0,0.00030136,120]
[380390331,1755723048901,-400.0,0.00030136,120]
[380390332,1755723048910,-400.0,0.00030136,120]
[380390333,1755723048919,-2405.01,0.00030136,120]
[380390334,1755723048928,-1352.04,0.00030136,120]
[380390335,1755723048937,-400.0,0.00030136,120]
[380390336,1755723048947,-804.48,0.00030136,120]
[380390337,1755723048956,-633.62,0.00030136,120]
[380390338,1755723048965,-605.37,0.00030136,120]
[380390339,1755723048974,-400.0,0.00030136,120]
[380390340,1755723048984,-1029.37,0.00030136,120]
[380390341,1755723048993,-400.0,0.00030136,120]
[380390342,1755723049003,-400.0,0.00030136,120]
[380390343,1755723049012,-400.0,0.00030136,120]
[380390344,1755723049022,-1082.67,0.00030136,120]
[380390345,1755723049032,-555.29,0.00030136,120]
[380390346,1755723049042,-400.84332293,0.00030136,120]
[380390347,1755723049052,-442.31,0.00030136,120]
[380390348,1755723049061,-915.7,0.00030136,120]
[380390349,1755723049070,-538.76,0.00030136,120]
[380390350,1755723049079,-400.0,0.00030136,120]
[380390351,1755723049089,-911.33,0.00030136,120]
[380390352,1755723049098,-400.0,0.00030136,2]
[380390353,1755723049107,-1265.3,0.00030136,120]
[380390354,1755723049117,-400.0,0.00030136,120]
[380390355,1755723049126,-632.8,0.00030136,120]
[380390356,1755723049135,-620.97,0.00030136,120]
[380390357,1755723049145,-671.32,0.00030136,30]
[380390358,1755723049155,-400.0,0.00030136,60]
[380390359,1755723049164,-400.0,0.00030136,120]
[380390360,1755723049173,-1773.98,0.00030136,120]
[380390361,1755723049182,-1182.33,0.00030136,120]
[380390362,1755723049191,-486.54,0.00030136,120]
[380390363,1755723049201,-278.76512662,0.00030136,120]
[380390364,1755723049210,-553.43,0.00030136,120]
[380390365,1755723049220,-1916.0,0.00030136,120]
[380390366,1755723049229,-888.35,0.00030136,120]
[380390367,1755723049238,-400.0,0.00030136,120]
[380390368,1755723049248,-957.94,0.00030136,120]
[380390369,1755723049257,-841.01,0.00030136,120]
[380390370,1755723049266,-400.0,0.00030136,120]
[380390371,1755723049276,-400.0,0.00030136,120]
[380390372,1755723049285,-770.97,0.00030136,120]
[380390373,1755723049294,-927.12,0.00030136,120]
[380390374,1755723049303,-400.0,0.00030136,120]
[380390375,1755723049313,-442.32,0.00030136,120]
[380390376,1755723049322,-1649.07,0.00030136,120]
[380390377,1755723049331,-639.87,0.00030136,120]
[380390378,1755723049340,-967.16,0.00030136,120]
[380390379,1755723049350,-1093.87,0.00030136,120]
[380390380,1755723049359,-893.86,0.00030136,120]
[380390381,1755723049368,-416.81,0.00030136,120]
[380390382,1755723049377,-400.0,0.00030136,120]
[380390383,1755723049386,-1245.82,0.00030136,120]
[380390384,1755723049395,-1214.84,0.00030136,120]
[380390385,1755723049405,-400.0,0.00030136,120]
[380390386,1755723049414,-669.32,0.00030136,120]
[380390387,1755723049431,-820.45,0.00030136,120]
[380390388,1755723049442,-400.0,0.00030136,120]
[380390389,1755723049452,-447.71164884,0.00030136,120]
[380390390,1755723050775,-1138.19835116,0.00030136,120]
[380390391,1755723050785,-61.84231657,0.00030136,120]
[380390392,1755723050800,-338.15768343,0.00030136,120]
[380390393,1755723050809,-518.93,0.00030136,120]
[380390394,1755723050818,-555.14,0.00030136,120]
[380390395,1755723050827,-1487.59,0.00030136,120]
[380390396,1755723050952,-670.54,0.00030136,7]
[380390397,1755723050997,-400.0,0.00030136,120]
[380390398,1755723051007,-1005.61,0.00030136,120]
[380390399,1755723051018,-1056.51,0.00030136,120]
[380390400,1755723051027,-400.0,0.00030136,120]
[380390401,1755723051037,-1046.09,0.00030136,120]
[380390402,1755723051046,-400.0,0.00030136,120]
[380390403,1755723051056,-1442.8,0.00030136,120]
[380390404,1755723051066,-400.0,0.00030136,120]
[380390405,1755723051075,-1344.2,0.00030136,120]
[380390406,1755723051085,-746.69,0.00030136,120]
[380390407,1755723051094,-492.56,0.00030136,120]
[380390408,1755723051104,-1610.43,0.00030136,120]
[380390409,1755723051113,-400.0,0.00030136,120]
[380390410,1755723051123,-825.23,0.00030136,120]
[380390411,1755723051132,-400.0,0.00030136,120]
[380390412,1755723051142,-1100.95,0.00030136,120]
[380390413,1755723051151,-3351.81,0.00030136,120]
[380390414,1755723051161,-401.18399194,0.00030136,120]
[380390415,1755723051170,-718.32,0.00030136,120]
[380390416,1755723051180,-1192.41,0.00030136,120]
[380390417,1755723051189,-1181.58,0.00030136,120]
[380390418,1755723051198,-500.0,0.00030136,120]
[380390419,1755723051207,-500.0,0.00030136,120]
[380390420,1755723051218,-1189.4,0.00030136,120]
[380390421,1755723051229,-606.17,0.00030136,120]
[380390422,1755723051238,-400.0,0.00030136,120]
[380390423,1755723051248,-108.08010395,0.00030136,120]
[380390424,1755723051263,-291.91989605,0.00030136,120]
[380390425,1755723051273,-1600.63,0.00030136,120]
[380390426,1755723051282,-2044.73,0.00030136,120]
[380390427,1755723051292,-1196.03,0.00030136,120]
[380390428,1755723051301,-400.0,0.00030136,120]
[380390429,1755723051310,-635.56,0.00030136,120]
[380390430,1755723051319,-1260.21,0.00030136,120]
[380390431,1755723051328,-872.86,0.00030136,120]
[380390432,1755723051338,-1300.34,0.00030136,120]
[380390433,1755723051347,-400.0,0.00030136,120]
[380390434,1755723051356,-866.13,0.00030136,120]
[380390435,1755723051365,-994.74,0.00030136,120]
[380390436,1755723051374,-1173.99,0.00030136,120]
[380390437,1755723051383,-1410.77,0.00030136,120]
[380390438,1755723051392,-739.75,0.00030136,120]
[380390439,1755723051401,-400.0,0.00030136,120]
[380390440,1755723051411,-400.0,0.00030136,120]
[380390441,1755723051422,-858.42,0.00030136,120]
[380390442,1755723051432,-400.0,0.00030136,120]
[380390443,1755723051441,-400.0,0.00030136,120]
[380390444,1755723051450,-400.0,0.00030136,120]
[380390445,1755723051459,-867.87,0.00030136,120]